bitfinex/quotes_SOLUSD_20250101
["timestamp","ask_amount","ask_price","bid_price","bid_amount"]
[1735747242770,20.0,192.52,192.42,15.94867504]
[1735747242960,0.97407385,192.51,192.43,23.776884]
[1735747244033,0.97407385,192.51,192.43,15.94867504]
[1735747245837,0.97407385,192.51,192.45,23.776884]
[1735747246037,79.96285201,192.55,192.45,23.776884]
[1735747246038,0.97407385,192.54,192.45,15.94867504]
[1735747246848,0.97407385,192.54,192.47,15.94867504]
[1735747247034,0.97399,192.55,192.48,23.776884]
[1735747247437,0.97399,192.55,192.46,23.776884]
[1735747247640,0.97399,192.55,192.46,39.72555904]
[1735747247830,0.97399,192.55,192.48,23.776884]
[1735747248760,0.97399,192.55,192.45,15.94867504]
[1735747249138,0.97399,192.55,192.46,23.776884]
[1735747250137,0.97399,192.55,192.45,23.776884]
[1735747250543,0.97399,192.55,192.43,15.94867504]
[1735747250746,0.97399,192.55,192.42,15.94867504]
[1735747250947,20.0,192.53,192.42,15.94867504]
[1735747251147,9.80924541,192.56,192.42,15.94867504]
[1735747251350,1.5896,192.55,192.44,20.0]
[1735747252158,7.7905,192.54,192.45,23.776884]
[1735747252967,7.7905,192.54,192.4,15.94867504]
[1735747253144,14.55335201,192.54,192.4,15.94867504]
[1735747253343,73.2,192.53,192.43,20.0]
[1735747253551,73.2,192.53,192.44,23.776884]
[1735747253751,73.2,192.53,192.41,23.776884]
[1735747254055,7.7913,192.52,192.41,23.776884]
[1735747254261,7.7913,192.52,192.4,23.776884]
[1735747254669,6.1592,192.51,192.4,23.776884]
[1735747254842,6.1592,192.51,192.38,15.94867504]
[1735747255273,7.7922,192.5,192.38,15.94867504]
[1735747255487,1.6482,192.49,192.37,15.94867504]
[1735747256155,1.6482,192.49,192.38,23.776884]
[1735747256543,27.793,192.48,192.36,15.94867504]
[1735747256851,27.793,192.48,192.35,15.94867504]
[1735747257057,27.793,192.48,192.36,23.776884]
[1735747259271,27.793,192.48,192.38,23.776884]
[1735747259667,27.793,192.48,192.36,15.94867504]
[1735747259848,27.793,192.48,192.37,23.776884]
[1735747261376,20.0,192.48,192.39,15.94867504]
[1735747261571,1.6482,192.49,192.39,15.94867504]
[1735747261873,1.6482,192.49,192.41,23.776884]
[1735747262474,1.6482,192.49,192.38,15.94867504]
[1735747262861,9.4408,192.49,192.37,15.94867504]
[1735747263050,73.2,192.48,192.35,15.94867504]
[1735747263253,6.2919,192.47,192.35,15.94867504]
[1735747263660,78.82304643,192.48,192.35,15.94867504]
[1735747263661,78.82304643,192.48,192.36,23.776884]
[1735747264061,78.82304643,192.48,192.37,23.776884]
[1735747264550,78.82304643,192.48,192.37,15.94867504]
[1735747265060,5.62304643,192.48,192.38,23.776884]
[1735747265993,5.62304643,192.48,192.4,23.776884]
[1735747266353,5.62304643,192.48,192.4,15.94867504]
[1735747266574,5.62304643,192.48,192.4,23.776884]
[1735747267063,5.62304643,192.48,192.39,15.94867504]
[1735747267267,5.62304643,192.48,192.39,20.0]
[1735747267899,5.62304643,192.48,192.37,20.0]
[1735747268181,13.41634643,192.48,192.35,15.94867504]
[1735747268602,13.41634643,192.48,192.36,23.776884]
[1735747269070,13.41634643,192.48,192.35,15.94867504]
[1735747269268,7.7938,192.46,192.34,15.94867504]
[1735747269588,80.9938,192.46,192.35,23.776884]
[1735747270189,7.7946,192.44,192.32,15.94867504]
[1735747270371,1.5479,192.42,192.32,15.94867504]
[1735747270565,1.5479,192.42,192.33,23.776884]
[1735747270884,1.5479,192.42,192.34,20.0]
[1735747271384,1.5479,192.42,192.3,17.61247504]
[1735747271580,1.5479,192.42,192.31,15.94867504]
[1735747271796,20.0,192.4,192.26,2.28463597]
[1735747271970,20.0,192.37,192.25,15.94867504]
[1735747272284,0.10611281,192.27,192.23,8.02107357]
[1735747272688,0.10611281,192.27,192.24,23.776884]
[1735747273171,0.10611281,192.27,192.23,23.776884]
[1735747273579,0.10611281,192.27,192.22,15.94867504]
[1735747274184,0.10611281,192.27,192.21,2.28496357]
[1735747274387,0.10611281,192.27,192.24,15.94867504]
[1735747274596,0.10611281,192.27,192.23,15.94867504]
[1735747274763,0.10611281,192.27,192.22,15.94867504]
[1735747274968,0.10611281,192.27,192.21,15.94867504]
[1735747275369,0.10611281,192.27,192.22,23.776884]
[1735747275673,0.10611281,192.27,192.19,35.94867504]
[1735747275874,0.10611281,192.27,192.19,15.94867504]
[1735747276093,0.10611281,192.27,192.21,15.94867504]
[1735747276284,0.10611281,192.27,192.2,15.94867504]
[1735747276886,0.10611281,192.27,192.19,15.94867504]
[1735747277196,0.10611281,192.27,192.2,23.776884]
[1735747277492,0.10611281,192.27,192.17,15.94867504]
[1735747277796,0.10611281,192.27,192.16,7.6618]
[1735747277797,8.02411281,192.27,192.16,15.94867504]
[1735747278198,8.02411281,192.27,192.15,35.94867504]
[1735747278393,89.02571281,192.27,192.15,15.94867504]
[1735747278599,89.02571281,192.27,192.13,15.94867504]
[1735747279201,89.02571281,192.27,192.14,23.776884]
[1735747279378,94.01946106,192.27,192.14,23.776884]
[1735747279573,94.01946106,192.27,192.14,39.72555904]
[1735747279899,78.19374825,192.26,192.15,20.0]
[1735747280283,73.2,192.25,192.13,23.776884]
[1735747280488,81.0027,192.24,192.1,15.94867504]
[1735747280798,81.0027,192.24,192.08,15.94867504]
[1735747280799,93.2,192.2,192.08,15.94867504]
[1735747280992,93.2,192.2,192.02,7.6618]
[1735747280993,7.918,192.19,192.02,7.6618]
[1735747281295,20.0,192.16,192.05,15.94867504]
[1735747281499,73.2,192.18,192.05,15.94867504]
[1735747281682,20.0,192.15,192.05,23.776884]
[1735747281882,20.0,192.14,192.02,15.94867504]
[1735747282195,20.0,192.13,192.01,15.94867504]
[1735747282779,20.0,192.12,192.01,15.94867504]
[1735747282995,20.0,192.11,192.01,15.94867504]
[1735747283302,7.918,192.1,192.02,23.776884]
[1735747283596,7.918,192.1,191.99,15.94867504]
[1735747283975,73.2,192.08,191.97,15.94867504]
[1735747284177,81.118,192.1,191.92,15.31179436]
[1735747284389,81.118,192.1,191.98,16.00336441]
[1735747284584,81.118,192.1,191.99,23.776884]
[1735747284902,86.54934332,192.1,191.97,25.6054601]
[1735747285284,86.54934332,192.1,191.98,23.776884]
[1735747285802,20.0,192.06,191.94,25.6054601]
[1735747286395,20.0,192.04,191.93,25.6054601]
[1735747286597,20.0,192.04,191.92,25.6054601]
[1735747286900,20.0,192.04,191.91,25.6054601]
[1735747286901,73.2,192.04,191.91,25.6054601]
[1735747287114,79.37246144,192.04,191.91,25.6054601]
[1735747287605,73.2,192.09,191.99,49.3823441]
[1735747287807,7.918,192.1,192.03,25.6054601]
[1735747288502,7.918,192.1,192.04,25.6054601]
[1735747288802,7.8067,192.15,192.06,25.6054601]
[1735747288803,6.625,192.15,192.06,25.6054601]
[1735747289005,20.0,192.12,192.06,25.6054601]
[1735747289321,6.625,192.15,192.08,25.6054601]
[1735747289602,6.625,192.15,192.07,23.776884]
[1735747289902,6.625,192.15,192.09,23.776884]
[1735747290205,6.76285201,192.17,192.09,25.6054601]
[1735747290613,6.625,192.2,192.12,25.6054601]
[1735747290812,6.625,192.2,192.13,23.776884]
[1735747291029,6.625,192.2,192.13,49.3823441]
[1735747291301,6.625,192.2,192.12,26.09801691]
[1735747291680,6.76285201,192.23,192.12,26.09801691]
[1735747291905,6.625,192.25,192.15,46.09801691]
[1735747292207,6.625,192.25,192.13,26.09801691]
[1735747292405,0.10084282,192.15,192.14,23.776884]
[1735747292801,0.10084282,192.15,192.14,49.87490091]
[1735747293200,0.10443423,192.18,192.15,23.776884]
[1735747293538,0.10443423,192.18,192.15,49.87490091]
[1735747293815,0.10443423,192.18,192.14,26.09801691]
[1735747294412,6.625,192.25,192.17,26.09801691]
[1735747294597,6.625,192.25,192.18,23.776884]
[1735747294802,79.96285201,192.27,192.18,23.776884]
[1735747294803,6.76285201,192.27,192.18,49.87490091]
[1735747295011,6.26285201,192.27,192.18,23.776884]
[1735747295388,6.26285201,192.27,192.17,23.776884]
[1735747295893,20.0,192.27,192.18,23.776884]
[1735747296093,20.0,192.26,192.18,23.776884]
[1735747296825,20.0,192.26,192.17,23.776884]
[1735747296985,20.0,192.22,192.1,33.86591691]
[1735747297189,20.0,192.22,192.09,26.09801691]
[1735747297407,20.0,192.21,192.08,26.09801691]
[1735747297612,20.0,192.21,192.07,26.09801691]
[1735747298444,20.0,192.21,192.08,23.776884]
[1735747298641,20.0,192.21,192.07,26.09801691]
[1735747298821,6.3146,192.19,192.07,26.09801691]
[1735747300024,6.3146,192.19,192.08,23.776884]
[1735747300717,6.3146,192.19,192.06,26.09801691]
[1735747300913,6.3146,192.19,192.09,26.09801691]
[1735747301317,6.3146,192.24,192.15,23.776884]
[1735747301515,6.3146,192.24,192.15,49.87490091]
[1735747302529,6.3146,192.24,192.15,23.776884]
[1735747302737,6.3146,192.24,192.15,49.87490091]
[1735747302940,6.3146,192.24,192.13,26.09801691]
[1735747303111,6.3146,192.24,192.15,23.776884]
[1735747304428,6.3146,192.24,192.14,23.776884]
[1735747304623,6.3146,192.24,192.13,23.776884]
[1735747304932,7.8031,192.23,192.13,23.776884]
[1735747305336,7.8031,192.23,192.09,26.09801691]
[1735747305835,7.8031,192.23,192.1,26.09801691]
[1735747306015,7.8031,192.23,192.12,23.776884]
[1735747307030,7.8031,192.23,192.11,23.776884]
[1735747307532,73.2,192.22,192.08,46.09801691]
[1735747307831,7.8039,192.21,192.08,46.09801691]
[1735747308029,81.0039,192.21,192.09,26.09801691]
[1735747308334,6.3146,192.24,192.16,23.776884]
[1735747308541,6.3146,192.24,192.14,26.09801691]
[1735747309028,6.3146,192.24,192.16,23.776884]
[1735747309232,6.3146,192.24,192.15,23.776884]
[1735747309427,6.3146,192.24,192.12,26.09801691]
[1735747309619,6.3146,192.24,192.08,13.0152]
[1735747309620,7.8031,192.23,192.11,26.09801691]
[1735747309937,7.8031,192.23,192.12,49.87490091]
[1735747310513,6.3146,192.24,192.14,49.87490091]
[1735747311334,6.3146,192.24,192.14,23.776884]
[1735747312231,6.3146,192.24,192.13,23.776884]
[1735747312431,0.11365682,192.15,192.14,24.55744125]
[1735747312734,0.11365682,192.15,192.14,50.65545816]
[1735747313529,81.0003,192.3,192.15,23.776884]
[1735747313728,81.0003,192.3,192.17,49.87490091]
[1735747314325,0.09390185,192.24,192.19,43.776884]
[1735747314541,0.09390185,192.24,192.19,69.87490091]
[1735747315254,0.09390185,192.24,192.19,43.776884]
[1735747315429,0.09390185,192.24,192.16,26.09801691]
[1735747316025,0.09390185,192.24,192.18,23.776884]
[1735747316431,0.09390185,192.24,192.19,23.776884]
[1735747316632,0.09390185,192.24,192.19,49.87490091]
[1735747316943,0.09390185,192.24,192.15,20.0]
[1735747317928,0.09390185,192.24,192.13,23.776884]
[1735747318128,0.09390185,192.24,192.12,26.87856189]
[1735747318719,6.63356778,192.2,192.09,0.78054564]
[1735747318921,6.63356778,192.2,192.09,26.09801691]
[1735747319225,6.63356778,192.2,192.08,49.87490091]
[1735747319438,6.63356778,192.2,192.08,26.09801691]
[1735747319634,6.63356778,192.2,192.11,20.0]
[1735747320127,6.63356778,192.2,192.12,23.776884]
[1735747322054,6.63356778,192.2,192.12,49.87490091]
[1735747322222,6.63356778,192.2,192.14,23.776884]
[1735747323336,0.09866778,192.2,192.15,49.87490091]
[1735747323563,0.09866778,192.2,192.17,23.776884]
[1735747323725,0.09866778,192.2,192.14,26.09801691]
[1735747323929,0.09866778,192.2,192.12,26.09801691]
[1735747324847,0.09866778,192.2,192.13,23.776884]
[1735747325154,0.09866778,192.2,192.12,23.776884]
[1735747325445,20.0,192.18,192.06,26.09801691]
[1735747326164,20.0,192.18,192.07,46.09801691]
[1735747326333,20.0,192.14,192.03,26.09801691]
[1735747326531,6.5349,192.15,192.04,26.09801691]
[1735747326833,20.0,192.14,192.05,23.776884]
[1735747327236,20.0,192.14,192.06,23.776884]
[1735747327547,20.0,192.14,192.03,26.09801691]
[1735747327749,20.0,192.12,192.01,26.09801691]
[1735747328046,20.0,192.11,192.02,26.09801691]
[1735747328229,7.8072,192.13,192.03,26.09801691]
[1735747328424,20.0,192.11,192.02,26.09801691]
[1735747328624,20.0,192.11,192.01,26.09801691]
[1735747328945,1.5241,192.1,191.99,26.09801691]
[1735747329365,20.0,192.07,191.97,26.09801691]
[1735747329532,20.0,192.06,191.98,26.09801691]
[1735747329836,20.0,192.06,191.99,26.09801691]
[1735747330041,20.0,192.06,191.98,26.09801691]
[1735747330351,20.0,192.07,191.96,26.09801691]
[1735747330531,20.0,192.07,191.97,26.09801691]
[1735747330848,20.0,192.07,191.98,49.87490091]
[1735747331071,20.0,192.07,191.98,23.776884]
[1735747331653,20.0,192.07,191.99,23.776884]
[1735747331837,20.0,192.07,191.97,26.09801691]
[1735747332152,20.0,192.07,191.97,23.776884]
[1735747333123,20.0,192.07,191.98,23.776884]
[1735747333857,26.1749,192.06,191.98,23.776884]
[1735747334552,20.0,192.03,191.94,26.09801691]
[1735747334726,20.0,192.03,191.94,23.776884]
[1735747334930,1.5975,192.02,191.92,26.09801691]
[1735747335131,1.5975,192.02,191.94,26.09801691]
[1735747335334,1.5975,192.02,191.91,20.0]
[1735747335335,1.5975,192.02,191.95,26.09801691]
[1735747335635,94.7975,192.02,191.86,0.78130401]
[1735747335840,20.0,191.98,191.88,26.09801691]
[1735747336340,20.0,191.98,191.89,23.776884]
[1735747337154,20.0,191.98,191.84,13.0311]
[1735747337155,6.1749,191.97,191.87,26.09801691]
[1735747337341,6.1749,191.97,191.86,26.09801691]
[1735747337732,6.1749,191.97,191.87,23.776884]
[1735747338053,6.1749,191.97,191.87,49.87490091]
[1735747338353,6.1749,191.97,191.87,23.776884]
[1735747339057,6.1749,191.97,191.88,49.87490091]
[1735747339250,6.1749,191.97,191.89,26.09801691]
[1735747339649,6.1749,191.97,191.9,49.87490091]
[1735747339847,6.1749,191.97,191.93,23.776884]
[1735747340054,7.7724,192.02,191.93,49.87490091]
[1735747341159,20.0,192.0,191.93,49.87490091]
[1735747341335,20.0,192.0,191.93,23.776884]
[1735747341536,20.0,192.0,191.91,23.776884]
[1735747342544,20.0,191.98,191.9,23.776884]
[1735747343041,20.0,191.98,191.87,26.09801691]
[1735747343042,20.0,191.96,191.87,26.09801691]
[1735747343362,20.0,191.96,191.86,26.09801691]
[1735747343765,20.0,191.96,191.87,23.776884]
[1735747344066,20.0,191.95,191.85,26.09801691]
[1735747345166,8.1066,191.93,191.83,26.09801691]
[1735747345462,73.2,191.96,191.82,26.09801691]
[1735747345758,7.8145,191.95,191.82,26.09801691]
[1735747346461,7.8145,191.95,191.81,26.09801691]
[1735747346843,73.2,191.94,191.8,26.09801691]
[1735747347043,7.8153,191.93,191.8,26.09801691]
[1735747347240,20.0,191.89,191.79,26.09801691]
[1735747347450,20.0,191.88,191.77,27.68591691]
[1735747347659,20.0,191.88,191.78,23.776884]
[1735747347855,73.2,191.91,191.8,23.776884]
[1735747348642,73.2,191.91,191.81,23.776884]
[1735747348968,73.2,191.91,191.82,23.776884]
[1735747349174,73.2,191.9,191.79,26.09801691]
[1735747349381,73.2,191.89,191.79,26.09801691]
[1735747349676,73.2,191.89,191.78,26.09801691]
[1735747350198,73.2,191.89,191.82,23.776884]
[1735747350483,73.2,191.89,191.81,23.776884]
[1735747350985,73.2,191.89,191.79,26.09801691]
[1735747351169,73.2,191.89,191.78,26.09801691]
[1735747351366,73.2,191.89,191.79,23.776884]
[1735747351677,79.9267409,191.89,191.79,23.776884]
[1735747351868,79.9267409,191.89,191.78,23.776884]
[1735747352455,20.0,191.85,191.78,23.776884]
[1735747352673,20.0,191.85,191.77,23.776884]
[1735747352976,20.0,191.82,191.74,26.09801691]
[1735747353151,73.2,191.84,191.74,26.09801691]
[1735747354274,73.2,191.84,191.74,23.776884]
[1735747354650,0.2326,191.83,191.74,23.276884]
[1735747355283,0.2326,191.83,191.75,26.09801691]
[1735747355781,0.2326,191.83,191.74,26.09801691]
[1735747356171,0.2326,191.83,191.75,26.09801691]
[1735747356665,0.2326,191.83,191.75,23.776884]
[1735747357058,20.0,191.82,191.74,23.776884]
[1735747357967,20.0,191.82,191.72,26.09801691]
[1735747358181,101.0199,191.82,191.71,26.09801691]
[1735747358392,20.0,191.79,191.71,16.38404743]
[1735747358595,6.7267409,191.82,191.75,16.38404743]
[1735747358891,6.9593409,191.88,191.79,16.38404743]
[1735747359094,6.9593409,191.88,191.82,23.776884]
[1735747359258,6.9593409,191.88,191.82,40.16093143]
[1735747359454,81.0153,191.93,191.84,40.16093143]
[1735747359455,73.2,191.93,191.84,40.16093143]
[1735747359659,6.9593409,191.94,191.86,23.776884]
[1735747359895,6.9593409,191.94,191.88,23.776884]
[1735747360266,6.9593409,191.94,191.86,16.38404743]
[1735747360492,6.9593409,191.94,191.88,16.38404743]
[1735747360803,6.7267409,191.94,191.9,16.38404743]
[1735747361004,3.7943,192.0,191.92,16.38404743]
[1735747361295,6.7267409,192.01,191.94,23.776884]
[1735747361499,6.7267409,192.01,191.94,16.38404743]
[1735747362382,6.7267409,192.01,191.94,49.9297441]
[1735747362984,3.7943,192.05,191.98,23.776884]
[1735747363157,3.7943,192.05,191.96,23.776884]
[1735747363561,20.0,192.03,191.94,26.1528601]
[1735747363977,20.0,192.03,191.95,23.776884]
[1735747364370,20.0,192.03,191.95,49.9297441]
[1735747364767,3.7943,192.05,191.97,23.776884]
[1735747365579,3.7943,192.05,191.96,23.776884]
[1735747365891,3.7943,192.05,191.95,23.776884]
[1735747366079,3.7943,192.05,191.95,49.9297441]
[1735747366475,3.7943,192.05,191.97,23.776884]
[1735747366994,20.0,192.04,191.96,23.776884]
[1735747367371,20.0,192.04,191.94,26.1528601]
[1735747367573,3.7943,192.05,191.94,26.1528601]
[1735747367774,3.7943,192.05,191.95,23.776884]
[1735747368096,93.2,192.01,191.84,1.6635]
[1735747368297,73.2,191.99,191.86,26.1528601]
[1735747369303,81.013,191.99,191.87,23.776884]
[1735747369483,20.0,191.96,191.87,23.776884]
[1735747369804,20.0,191.96,191.86,26.1528601]
[1735747369985,20.0,191.96,191.87,23.776884]
[1735747370595,20.0,191.96,191.88,23.776884]
[1735747371771,80.1593409,191.99,191.89,49.9297441]
[1735747371967,81.0116,192.03,191.93,23.776884]
[1735747372374,20.0,192.0,191.92,23.776884]
[1735747372581,20.0,191.99,191.92,23.776884]
[1735747374594,20.0,191.94,191.83,6.1225]
[1735747375390,20.0,191.94,191.82,26.1528601]
[1735747375592,20.0,191.94,191.8,1.5006]
[1735747375593,93.4326,191.94,191.81,26.1528601]
[1735747375898,93.4326,191.94,191.82,23.776884]
[1735747376117,93.4326,191.94,191.82,26.1528601]
[1735747376500,93.4326,191.94,191.83,23.776884]
[1735747377301,93.4326,191.94,191.81,49.9297441]
[1735747377599,20.0,191.9,191.81,26.1528601]
[1735747378602,20.0,191.9,191.83,23.776884]
[1735747379092,20.0,191.9,191.81,23.776884]
[1735747379496,20.0,191.9,191.8,1.5006]
[1735747379797,27.8166,191.9,191.78,32.1928601]
[1735747379981,24.7286,191.9,191.79,23.776884]
[1735747380495,24.7286,191.9,191.78,23.776884]
[1735747380698,30.11209377,191.9,191.78,23.776884]
[1735747381001,30.11209377,191.9,191.77,26.1528601]
[1735747381380,30.11209377,191.9,191.78,23.776884]
[1735747385023,30.11209377,191.9,191.79,23.776884]
[1735747387226,73.2,191.89,191.78,23.776884]
[1735747387392,20.0,191.86,191.75,27.6534601]
[1735747387786,20.0,191.86,191.75,1.5006]
[1735747387988,20.0,191.86,191.75,27.6534601]
[1735747388214,20.0,191.86,191.76,23.776884]
[1735747388826,20.0,191.86,191.75,1.5006]
[1735747389195,20.0,191.86,191.76,23.776884]
[1735747389404,93.4326,191.85,191.73,16.3754809]
[1735747389694,20.0,191.81,191.7,17.9143809]
[1735747389932,20.0,191.8,191.69,16.3754809]
[1735747390218,20.0,191.78,191.67,16.3754809]
[1735747391932,20.0,191.78,191.68,23.776884]
[1735747392124,20.0,191.78,191.7,23.776884]
[1735747393315,20.0,191.77,191.7,23.776884]
[1735747393515,20.0,191.77,191.69,26.21683492]
[1735747393703,20.0,191.77,191.68,26.21683492]
[1735747393890,20.0,191.77,191.66,26.21683492]
[1735747394505,20.0,191.75,191.65,27.75573492]
[1735747394819,20.0,191.75,191.66,23.776884]
[1735747396013,20.0,191.75,191.65,26.21683492]
[1735747396627,20.0,191.75,191.65,23.776884]
[1735747396919,20.0,191.74,191.66,49.99371892]
[1735747397300,20.0,191.73,191.64,26.21683492]
[1735747397720,20.0,191.73,191.63,26.21683492]
[1735747398024,20.0,191.73,191.62,26.21683492]
[1735747398328,20.0,191.69,191.6,27.75573492]
[1735747398819,6.7267409,191.74,191.6,26.21683492]
[1735747398820,20.0,191.7,191.6,26.21683492]
[1735747399027,20.0,191.69,191.61,23.776884]
[1735747399396,20.0,191.7,191.61,49.99371892]
[1735747399605,20.0,191.7,191.56,8.84414501]
[1735747399606,6.7267409,191.74,191.65,23.776884]
[1735747399802,20.0,191.71,191.65,23.776884]
[1735747400302,20.0,191.71,191.64,23.776884]
[1735747400526,20.0,191.7,191.61,26.21683492]
[1735747400699,20.0,191.69,191.58,26.21683492]
[1735747401118,20.0,191.69,191.59,23.776884]
[1735747401622,23.7943,191.69,191.58,23.776884]
[1735747401796,23.7943,191.69,191.57,26.21683492]
[1735747402220,20.0,191.64,191.52,1.5389]
[1735747402401,20.0,191.64,191.54,26.21683492]
[1735747404123,20.0,191.64,191.53,49.99371892]
[1735747404423,20.0,191.64,191.53,26.21683492]
[1735747404831,20.0,191.64,191.52,27.75573492]
[1735747405330,20.0,191.64,191.53,26.21683492]
[1735747405629,20.0,191.64,191.53,49.99371892]
[1735747406237,20.0,191.64,191.53,23.776884]
[1735747406444,26.7267409,191.64,191.53,23.776884]
[1735747406731,20.0,191.63,191.53,23.776884]
[1735747407116,21.34324713,191.63,191.53,23.776884]
[1735747407444,20.0,191.62,191.53,23.776884]
[1735747408318,20.0,191.62,191.54,49.99371892]
[1735747408531,73.2,191.67,191.57,49.99371892]
[1735747408721,73.2,191.67,191.57,23.776884]
[1735747409118,73.2,191.67,191.56,23.776884]
[1735747409315,20.0,191.64,191.56,23.776884]
[1735747409535,20.0,191.64,191.55,23.776884]
[1735747409941,20.0,191.64,191.52,26.21683492]
[1735747410114,20.0,191.63,191.51,26.21683492]
[1735747410941,20.0,191.62,191.54,23.776884]
[1735747411127,20.0,191.62,191.55,23.776884]
[1735747411332,20.0,191.61,191.51,26.21683492]
[1735747411839,20.0,191.6,191.52,23.776884]
[1735747412133,20.0,191.6,191.53,23.776884]
[1735747412325,20.0,191.6,191.54,16.41350239]
[1735747412532,20.0,191.6,191.55,23.776884]
[1735747414041,20.0,191.6,191.53,40.19038639]
[1735747414429,20.0,191.6,191.53,23.776884]
[1735747416724,20.0,191.61,191.53,23.776884]
[1735747417942,20.0,191.6,191.5,16.41350239]
[1735747418246,20.0,191.59,191.48,18.04780239]
[1735747418445,20.0,191.58,191.48,18.04780239]
[1735747418632,20.0,191.58,191.49,23.776884]
[1735747419030,20.0,191.59,191.49,40.19038639]
[1735747419428,20.0,191.59,191.51,23.776884]
[1735747419947,20.0,191.58,191.51,23.776884]
[1735747420145,73.2,191.63,191.53,16.41350239]
[1735747420345,79.9267409,191.64,191.53,16.41350239]
[1735747420525,20.0,191.6,191.53,23.776884]
[1735747421248,6.7267409,191.63,191.53,40.19038639]
[1735747421952,6.7267409,191.63,191.55,16.41350239]
[1735747422150,6.7267409,191.63,191.55,23.776884]
[1735747422646,20.0,191.6,191.55,16.41350239]
[1735747423238,6.7267409,191.63,191.55,16.41350239]
[1735747423436,4.0269,191.65,191.55,16.41350239]
[1735747423634,20.2326,191.65,191.57,23.776884]
[1735747423840,0.2326,191.65,191.57,23.776884]
[1735747424345,4.0269,191.69,191.58,16.41350239]
[1735747424528,20.0,191.67,191.59,23.776884]
[1735747425045,4.0269,191.69,191.59,16.41350239]
[1735747425240,6.24092072,191.71,191.61,16.41350239]
[1735747425442,6.24092072,191.71,191.63,23.776884]
[1735747425632,6.24092072,191.71,191.63,16.41350239]
[1735747426249,6.24092072,191.71,191.62,16.41350239]
[1735747426453,6.24092072,191.71,191.63,23.776884]
[1735747426652,20.0,191.68,191.63,23.776884]
[1735747426872,20.0,191.68,191.63,16.41350239]
[1735747427034,3.7943,191.75,191.66,23.776884]
[1735747427229,20.0,191.73,191.66,23.776884]
[1735747427425,20.0,191.73,191.62,16.41350239]
[1735747427631,20.0,191.72,191.63,23.776884]
[1735747429145,20.0,191.72,191.62,23.776884]
[1735747429460,20.0,191.72,191.62,16.41350239]
[1735747432142,20.0,191.72,191.63,16.41350239]
[1735747432339,20.0,191.73,191.64,16.41350239]
[1735747432846,20.0,191.73,191.65,40.19038639]
[1735747433040,3.7943,191.75,191.65,40.19038639]
[1735747433450,3.7943,191.75,191.65,23.776884]
[1735747433852,3.7943,191.75,191.62,16.41350239]
[1735747433853,20.0,191.73,191.62,16.41350239]
[1735747434053,20.0,191.73,191.61,16.41350239]
[1735747434651,20.0,191.73,191.62,40.19038639]
[1735747435361,20.0,191.72,191.62,40.19038639]
[1735747437266,20.0,191.72,191.64,40.19038639]
[1735747437442,20.0,191.72,191.65,16.41350239]
[1735747437642,6.24092072,191.76,191.67,23.776884]
[1735747437844,6.24092072,191.76,191.67,16.41350239]
[1735747438055,20.0,191.73,191.67,16.41350239]
[1735747440545,20.0,191.73,191.66,40.19038639]
[1735747441147,20.0,191.73,191.66,23.776884]
[1735747441571,20.0,191.73,191.65,18.01800239]
[1735747441867,20.0,191.73,191.66,23.776884]
[1735747442465,20.0,191.73,191.64,16.41350239]
[1735747442771,20.0,191.73,191.63,6.5386]
[1735747442969,20.0,191.73,191.63,22.95210239]
[1735747443271,20.0,191.72,191.61,16.41350239]
[1735747443471,20.0,191.72,191.6,1.6045]
[1735747443684,20.0,191.72,191.58,22.95210239]
[1735747443685,0.2326,191.7,191.58,22.95210239]
[1735747444046,4.0269,191.7,191.57,16.41350239]
[1735747444248,20.0,191.66,191.54,16.41350239]
[1735747444748,20.0,191.66,191.53,6.5386]